Cogmind - Beta 10.2 @@@ ROGUE MODE // 2021.01.11 @ 15:25:51 Player: Demise Result: Self-destructed Performance ------------- Evolutions (2) 1000 Regions Visited (7) 1400 Robots Destroyed (114) 570 Value Destroyed (2503) 2503 Prototype IDs (44) 880 Alien Tech Used (0) 0 Bonus (-716) -716 TOTAL SCORE: 5637 Bonus ------- High Alert Combat Kills 73 Follower Combat Kills 56 Aligned with FarCom 300 Friendly Fire -1145 Cogmind --------- Core Integrity 517/550 Matter 290/300 Energy 280/280 System Corruption 0% Temperature Cool (0) Movement Treading (220) Ox3 Location -8/Materials Parts ------- > --- POWER (1) -------- Heavy Ion Engine > --- PROPULSION (2) --- Improved Treads Improved Treads > --- UTILITY (6) ------ High-capacity Storage Unit High-capacity Storage Unit High-capacity Storage Unit High-capacity Storage Unit Melee Analysis Suite Medium Armor Plating > --- WEAPON (2) ------- Autogun Mining Laser > --- INVENTORY (36) --- Heavy Ion Engine Heavy Ion Engine Nuclear Core Fission Core Light Fission Core Light Treads Light Treads Light Treads Improved Treads High-capacity Matter Pod (200) High-capacity Matter Pod (200) High-capacity Matter Pod (200) High-capacity Matter Pod (200) Targeting Computer Armor Integrity Analyzer Power Shielding Utility Shielding Weapon Shielding Light Armor Plating Hardened Light Armor Plating Improved EM Shotgun Heavy Assault Rifle Heavy Assault Rifle Heavy Assault Rifle Heavy Assault Rifle Heavy Assault Rifle Heavy Assault Rifle Improved Assault Rifle YI-UF0's Doublenader Datajack Field Lobotomy Kit Plasma Cutter Katana Stasis Trap (100%) Stasis Trap (100%) Stasis Trap (100%) Peak State ------------ > --- POWER ------------ Heavy Ion Engine > --- PROPULSION ------- Improved Treads Improved Treads > --- UTILITY ---------- High-capacity Storage Unit High-capacity Storage Unit High-capacity Storage Unit High-capacity Storage Unit Advanced Sensor Array Melee Analysis Suite > --- WEAPON ----------- Autogun Katana > --- INVENTORY -------- Heavy Ion Engine Heavy Ion Engine Nuclear Core Fission Core Light Fission Core Light Treads Light Treads Light Treads Improved Treads High-capacity Matter Pod High-capacity Matter Pod High-capacity Matter Pod High-capacity Matter Pod Targeting Computer Armor Integrity Analyzer Power Shielding Utility Shielding Weapon Shielding Light Armor Plating Hardened Light Armor Plating Improved EM Shotgun Heavy Assault Rifle Heavy Assault Rifle Heavy Assault Rifle Heavy Assault Rifle Heavy Assault Rifle Heavy Assault Rifle Improved Assault Rifle YI-UF0's Doublenader Datajack Field Lobotomy Kit Mining Laser Plasma Cutter Stasis Trap Stasis Trap Stasis Trap [Rating: 29] Favorites ----------- Power Heavy Ion Engine Engine Heavy Ion Engine Power Core Light Nuclear Core Propulsion Light Treads Treads Light Treads Utility High-capacity Storage Unit Device Advanced Heat Sink Storage High-capacity Storage Unit Processor Signal Interpreter Hackware Hacking Suite Protection Hardened Light Armor Plating Weapon Heavy Assault Rifle Energy Gun Improved EM Shotgun Ballistic Gun Heavy Assault Rifle Launcher YI-UF0's Doublenader Special Weapon Mining Laser Slashing Weapon Katana Special Melee Weapon Datajack Build | -11 -10 -10 -9 -9 -9 -8 -8 ------- Run | Scr Mat Min Mat Min Exi Min Mat Slots Evolved 4 | . . . 2 . . . 2 Power . | . . . . . . . . Propulsion . | . . . . . . . . Utility 4 | . . . 2 . . . 2 Weapon . | . . . . . . . . Parts Attached 98 | 5 18 6 50 5 2 2 10 Power 11 | 1 4 1 5 . . . . Engine 10 | 1 3 1 5 . . . . Core 1 | . 1 . . . . . . Reactor . | . . . . . . . . Propulsion 16 | 2 1 . 9 . . . 4 Treads 16 | 2 1 . 9 . . . 4 Leg . | . . . . . . . . Wheel . | . . . . . . . . Hover . | . . . . . . . . Flight . | . . . . . . . . Utility 29 | . 6 2 14 2 1 . 4 Device 3 | . . 1 1 . . . 1 Storage 10 | . 4 1 3 1 1 . . Processor 5 | . 1 . 3 . . . 1 Hackware 1 | . 1 . . . . . . Protection 10 | . . . 7 1 . . 2 Artifact . | . . . . . . . . Weapon 42 | 2 7 3 22 3 1 2 2 Energy Gun 3 | . . . 3 . . . . Energy Cannon . | . . . . . . . . Ballistic Gun 28 | 2 5 2 15 2 . 2 . Ballistic Cannon . | . . . . . . . . Launcher 5 | . 1 . 3 1 . . . Special Weapon 3 | . 1 1 . . . . 1 Impact Weapon . | . . . . . . . . Slashing Weapon 2 | . . . 1 . . . 1 Piercing Weapon . | . . . . . . . . Special Melee Weapon 1 | . . . . . 1 . . Unidentified Prototypes 4 | . . . 4 . . . . Parts Lost 5 | . 1 3 1 . . . . Power . | . . . . . . . . Propulsion 1 | . . 1 . . . . . Utility 2 | . . 1 1 . . . . Weapon 2 | . 1 1 . . . . . Highest Loss Streak 2 | . 1 2 1 . . . . Average Slot Usage (%) 96 | . 98 83 98 100 88 100 99 Engine 9 | . 7 3 11 11 11 11 9 Core 2 | . 6 10 . . . . . Treads 22 | . 28 15 21 22 22 22 18 Storage 24 | . 17 22 22 28 43 44 36 Processor 2 | . 3 1 2 . . . 8 Hackware 1 | . 5 . . . . . . Protection 8 | . . . 17 15 . . 8 Ballistic Gun 20 | . 26 27 17 21 1 22 9 Slashing Weapon 1 | . . . 1 . . . 8 Naked Turns . | . . . . . . . . Heaviest Build 148 | 6 25 40 90 115 137 142 148 Greatest Support 46 | 40 40 40 46 46 46 46 46 Greatest Overweight (x) 3 | . . 1 2 2 2 3 3 Average Overweight (x) 1 | . . . 1 1 2 3 3 Largest Inventory Capacity 36 | 4 10 16 20 28 36 36 36 Average Capacity 19 | 4 7 13 19 24 35 36 36 Most Carried 36 | 4 10 14 20 28 36 36 36 Average Carried 18 | 2 7 11 19 24 34 35 35 Final Capacity 36 | 4 10 16 20 28 36 36 36 Final Carried 36 | 4 10 14 20 28 36 36 36 Class Distribution -------------------- 57% | Hauler-Mutant 34% | Mutant 8% | Scavenger-Mutant Dominant Class ---------------- Mutant | -10/Materials Mutant | -10/Mines Hauler-Mutant | -9/Materials Hauler-Mutant | -9/Mines Hauler-Mutant | -9/Exiles Hauler-Mutant | -8/Mines Hauler-Mutant | -8/Materials Resources | -11 -10 -10 -9 -9 -9 -8 -8 ----------- Run | Scr Mat Min Mat Min Exi Min Mat Matter Collected 3199 | 281 872 329 1149 192 153 53 170 Remotely . | . . . . . . . . Salvage Created 3999 | 119 767 454 1923 281 . 41 414 Parts 276 | 6 45 30 147 16 . 6 26 Haulers Intercepted 9 | . 2 . 6 . . . 1 Recyclers Shooed 3 | . . . 3 . . . . Parts Field Recycled . | . . . . . . . . Retrieved Matter . | . . . . . . . . Parts Self-Destructed . | . . . . . . . . Prevented . | . . . . . . . . Kills | -11 -10 -10 -9 -9 -9 -8 -8 ------- Run | Scr Mat Min Mat Min Exi Min Mat Combat Hostiles Destroyed 73 | . 12 12 34 6 . 3 6 Melee 6 | . . . . . . . 6 Guns 54 | . 9 12 26 4 . 3 . AOE 13 | . 3 . 8 2 . . . Classes Destroyed 13 | 2 7 1 2 . . . 1 Worker 11 | . 4 3 3 1 . . . Builder 4 | . 1 . 3 . . . . Tunneler 2 | 2 . . . . . . . Hauler 9 | . 2 . 6 . . . 1 Recycler 5 | 1 1 . 2 1 . . . Operator 2 | . 2 . . . . . . Watcher 10 | . 3 . 5 . . . 2 Swarmer 21 | . 3 5 7 3 . 3 . Grunt 33 | . 9 4 15 1 . . 4 Duelist 2 | . . . 2 . . . . Sentry 13 | . . . 10 2 . . 1 Hunter 1 | . . . . . . . 1 Assembled 3 | . . 3 . . . . . Best Kill Streak 8 | 3 5 5 8 3 . 3 2 Combat Bots Only 6 | . 3 5 6 3 . 3 2 Max Kills in Single Turn 3 | 1 2 1 3 2 . 1 1 Gunslinging 1 | . . . 1 . . . . Exploded 2 | . 2 . 2 2 . . . Melee 1 | . . . . . . . 1 Uniques/NPCs Destroyed 1 | . . 1 . . . . . YI-UF0 (-10/Mines) Combat | -11 -10 -10 -9 -9 -9 -8 -8 -------- Run | Scr Mat Min Mat Min Exi Min Mat Damage Taken 3133 | . 539 401 1258 529 . 80 326 Core 449 | . 48 111 153 89 . 15 33 Absorbed by Shields . | . . . . . . . . Core Remaining (%) 57 | 100 . 36 . . . 35 . Volleys Fired 298 | 11 95 53 114 20 . 4 1 Largest 2 | 2 2 2 2 2 . 2 1 Hottest 100 | 40 100 100 93 70 . 46 100 Shots Fired 558 | 22 180 102 205 40 . 8 1 Gun 542 | 22 171 101 201 39 . 8 . Cannon . | . . . . . . . . Launcher 9 | . 4 . 4 1 . . . Special 7 | . 5 1 . . . . 1 Kinetic 508 | 22 171 101 167 39 . 8 . Thermal 7 | . 5 1 . . . . 1 Explosive 9 | . 4 . 4 1 . . . Electromagnetic 34 | . . . 34 . . . . Robot Hit Streak 23 | 13 11 23 17 19 . 8 . Robot Miss Streak 4 | 2 4 4 4 3 . 1 . Penetration Max . | . . . . . . . . Secondary Targets 9 | . 1 . 6 1 . 1 . Max Gunslinging Chain 1 | . 1 . 1 1 . 1 . Shots Hit Robots 398 | 18 102 70 145 28 4 6 25 Core Hits 190 | 5 42 31 85 14 . 3 10 Critical Hits 5 | . . 2 2 . . . 1 Critical Kills 2 | . . . 1 . . . 1 Critical Parts Destroyed 2 | . . 1 1 . . . . Melee Attacks 34 | . . . . . 4 . 30 Impact . | . . . . . . . . Slashing 30 | . . . . . . . 30 Piercing . | . . . . . . . . Sneak Attacks 7 | . . . . . 4 . 3 Combat Hostiles . | . . . . . . . . Follow-up Attacks . | . . . . . . . . Damage Inflicted 7082 | 178 1450 829 2917 533 . 95 1080 Guns 4947 | 178 1198 829 2202 445 . 95 . Cannons . | . . . . . . . . Explosions 1039 | . 239 . 715 85 . . . Melee 1080 | . . . . . . . 1080 Ramming 16 | . 13 . . 3 . . . Kinetic 4472 | 178 1198 829 1727 445 . 95 . Thermal 246 | . . . 246 . . . . Explosive 793 | . 239 . 469 85 . . . Electromagnetic 475 | . . . 475 . . . . Impact . | . . . . . . . . Slashing 1080 | . . . . . . . 1080 Piercing . | . . . . . . . . Highest Corruption 5 | . 1 4 5 5 5 5 . Average Corruption 3 | . 1 3 5 5 5 5 . Corruption Purged . | . . . . . . . . Effects 125 | . 8 25 44 29 14 5 . Message Errors 39 | . 3 6 13 10 6 1 . Matter Fused 23 | . . 7 8 2 4 2 . Heat Flow Errors 12 | . . 3 2 6 1 . . Energy Discharges 12 | . 3 1 6 1 . 1 . Parts Rejected 1 | . . . 1 . . . . Data Loss (minor) 17 | . 2 4 5 2 3 1 . Data Loss (major) 6 | . . . . 6 . . . Misfires 4 | . . . 3 1 . . . Targeting Errors 11 | . . 4 6 1 . . . Overload Shots . | . . . . . . . . Overflow Damage 38 | . . . . . . . 38 Projectiles . | . . . . . . . . Explosions . | . . . . . . . . Melee 38 | . . . . . . . 38 Knockbacks . | . . . . . . . . Impact . | . . . . . . . . Kinetic . | . . . . . . . . Secondary . | . . . . . . . . Self-Inflicted Damage 203 | . 25 . 178 . . . . Shots 6 | . 1 . 5 . . . . Rammed 3 | . 2 . . 1 . . . Targets Rammed 3 | . 2 . . 1 . . . Kicked . | . . . . . . . . Crushed . | . . . . . . . . Highest Temperature 265 | . 28 185 252 265 121 4 12 Average Temperature 51 | . 12 32 52 77 68 2 7 Received Heat Transfer 951 | . 243 66 381 144 . . 117 Siege Activations . | . . . . . . . . Robots Corrupted . | . . . . . . . . Combat Hostiles . | . . . . . . . . Parts Fried 1 | . . . 1 . . . . Impact Corruptions . | . . . . . . . . Robots Melted . | . . . . . . . . Combat Hostiles . | . . . . . . . . Parts Melted . | . . . . . . . . Heat Transferred 200 | . . . 200 . . . . Parts Sabotaged . | . . . . . . . . Parts Stolen . | . . . . . . . . Parts Stripped . | . . . . . . . . Power Chain Reactions 4 | . . . 4 . . . . Missiles Intercepted . | . . . . . . . . Alert | -11 -10 -10 -9 -9 -9 -8 -8 ------- Run | Scr Mat Min Mat Min Exi Min Mat Peak Influence 555 | 15 213 110 555 268 . 70 222 Initial 143 | . 9 . . 143 . . 27 Average 157 | 3 62 42 303 108 . 67 104 Maximum Alert Level 2 | . 1 . 2 1 . . 1 Low Security (%) 65 | 100 96 100 20 76 . 100 90 Level 1 26 | . 3 . 58 23 . . 9 Level 2 7 | . . . 20 . . . . Level 3 . | . . . . . . . . Level 4 . | . . . . . . . . Level 5 . | . . . . . . . . High Security . | . . . . . . . . Max Security . | . . . . . . . . Squads Dispatched 6 | . 3 . 3 . . . . Investigation 3 | . 1 . 2 . . . . Extermination . | . . . . . . . . Reinforcement 2 | . 2 . . . . . . Assault 1 | . . . 1 . . . . Garrison . | . . . . . . . . Intercept . | . . . . . . . . Construction Impeded . | . . . . . . . . Haulers Reinforced . | . . . . . . . . Stealth | -11 -10 -10 -9 -9 -9 -8 -8 --------- Run | Scr Mat Min Mat Min Exi Min Mat Distress Signals 7 | . 2 . 2 . . . 3 Communications Jammed . | . . . . . . . . Distress Signals . | . . . . . . . . Times Spotted 116 | . 31 15 44 9 . 3 14 Peak Tracking Total 5 | . 4 4 5 3 . 3 3 Tactical Retreats 8 | . . 3 2 1 . . 2 Traps | -11 -10 -10 -9 -9 -9 -8 -8 ------- Run | Scr Mat Min Mat Min Exi Min Mat Traps Triggered 3 | . 1 . 2 . . . . Indirectly . | . . . . . . . . Trap Hack Attempts . | . . . . . . . . Triggered . | . . . . . . . . Disarmed . | . . . . . . . . Reprogrammed . | . . . . . . . . Reused . | . . . . . . . . Traps Extracted . | . . . . . . . . Installed . | . . . . . . . . Triggered . | . . . . . . . . Machines | -11 -10 -10 -9 -9 -9 -8 -8 ---------- Run | Scr Mat Min Mat Min Exi Min Mat Machines Disabled 5 | . . . 4 1 . . . Max in Single Turn 2 | . . . 2 . . . . Machines Sabotaged . | . . . . . . . . Garrisons Compromised . | . . . . . . . . Overloaded Fab Kills . | . . . . . . . . Fab Network Shutdowns . | . . . . . . . . Hacking | -11 -10 -10 -9 -9 -9 -8 -8 --------- Run | Scr Mat Min Mat Min Exi Min Mat Machines Accessed 27 | . 9 . 15 . 2 . 1 Terminals 16 | . 6 . 9 . . . 1 Fabricators . | . . . . . . . . Repair Stations 3 | . 1 . 2 . . . . Recycling Units 4 | . 2 . 2 . . . . Scanalyzers 2 | . . . 2 . . . . Garrison Access . | . . . . . . . . Total Hacks 94 | . 28 . 62 . 2 . 2 Successful 67 | . 20 . 43 . 2 . 2 Failed 26 | . 8 . 18 . . . . Catastrophic 3 | . 2 . 1 . . . . Database Lockouts 1 | . . . 1 . . . . Manual 47 | . 16 . 28 . 1 . 2 Terminals 54 | . 20 . 32 . . . 2 Fabricators . | . . . . . . . . Repair Stations 14 | . 4 . 10 . . . . Recycling Units 10 | . 4 . 6 . . . . Scanalyzers 14 | . . . 14 . . . . Garrison Access . | . . . . . . . . Terminal Hacks 19 | . 6 . 11 . 2 . . Record 1 | . . . . . 1 . . Part Schematic 1 | . . . 1 . . . . Robot Analysis 6 | . 5 . 1 . . . . Prototype ID Bank 2 | . . . 2 . . . . Terminal Index 1 | . 1 . . . . . . Unreport Threat 1 | . . . 1 . . . . Locate Traps 1 | . . . 1 . . . . Recall Assault 1 | . . . 1 . . . . Hauler Manifests 2 | . . . 2 . . . . Zone Layout 2 | . . . 2 . . . . EX-Prototype ID Bank 1 | . . . . . 1 . . Fabricator Hacks . | . . . . . . . . Repair Station Hacks 10 | . 2 . 8 . . . . Scan Component 5 | . 1 . 4 . . . . Repair 5 | . 1 . 4 . . . . Recycling Unit Hacks 4 | . 2 . 2 . . . . Retrieve Components 4 | . 2 . 2 . . . . Scanalyzer 14 | . . . 14 . . . . Insert Component 7 | . . . 7 . . . . Analyze 7 | . . . 7 . . . . Garrison Access Hacks . | . . . . . . . . Unauthorized Hacks 20 | . 10 . 8 . . . 2 Terminals 16 | . 8 . 6 . . . 2 Assimilate 3 | . 3 . . . . . . Botnet 10 | . 4 . 5 . . . 1 Operators 3 | . 1 . 1 . . . 1 Fabricators . | . . . . . . . . Repair Stations . | . . . . . . . . Recycling Units 4 | . 2 . 2 . . . . Reject 4 | . 2 . 2 . . . . Scanalyzers . | . . . . . . . . Garrison Access . | . . . . . . . . Data Cores Recovered . | . . . . . . . . Used . | . . . . . . . . Hacking Detections 21 | . 8 . 12 . . . 1 Full Trace Events 3 | . 3 . . . . . . Feedback Events . | . . . . . . . . Feedback Blocked . | . . . . . . . . Robot Schematics Acquired . | . . . . . . . . Robots Built . | . . . . . . . . Matter . | . . . . . . . . Time . | . . . . . . . . Total Robot Build Rating . | . . . . . . . . Part Schematics Acquired 8 | . . . 8 . . . . Parts Built . | . . . . . . . . Matter . | . . . . . . . . Time . | . . . . . . . . Total Part Build Rating . | . . . . . . . . Parts Repaired 5 | . 1 . 4 . . . . Time 154 | . 26 . 128 . . . . Parts Recycled . | . . . . . . . . Recycled Matter . | . . . . . . . . Retrieved Matter . | . . . . . . . . Retrieved Components 18 | . 2 . 16 . . . . Parts Scanalyzed 7 | . . . 7 . . . . Part Schematics Acquired 7 | . . . 7 . . . . Parts Damaged . | . . . . . . . . Bothacking | -11 -10 -10 -9 -9 -9 -8 -8 ------------ Run | Scr Mat Min Mat Min Exi Min Mat Used RIF Installer . | . . . . . . . . Robots Hacked 4 | . . . . . 4 . . Non-combat 3 | . . . . . 3 . . Combat 1 | . . . . . 1 . . Robot Hacks Applied 4 | . . . . . 4 . . parse_system 4 | . . . . . 4 . . Relay Couplers Released . | . . . . . . . . Robots Rewired . | . . . . . . . . Allies Hacked . | . . . . . . . . Hacks Repelled . | . . . . . . . . Allies | -11 -10 -10 -9 -9 -9 -8 -8 -------- Run | Scr Mat Min Mat Min Exi Min Mat Total Allies 5 | . 2 . . 3 . . . Largest Group 3 | . 2 1 . 3 . . . Highest-Rated Group 40 | . 20 10 . 40 . . . Highest-Rated Ally 16 | . 10 10 . 16 . . . Total Orders . | . . . . . . . . Ally Attacks 18 | . . . . 18 . . . Total Damage 202 | . . . . 202 . . . Kills 4 | . . . . 4 . . . Allies Corrupted 1 | . 1 . . . . . . Allies Melted . | . . . . . . . . Intel | -11 -10 -10 -9 -9 -9 -8 -8 ------- Run | Scr Mat Min Mat Min Exi Min Mat Robot Analysis Total 6 | . 5 . 1 . . . . Derelict Logs Recovered 2 | . . 1 . 1 . . . Drone Launches . | . . . . . . . . Drone Recoveries . | . . . . . . . . Exploration | -11 -10 -10 -9 -9 -9 -8 -8 ------------- Run | Scr Mat Min Mat Min Exi Min Mat Turns Passed 9625 | 85 2138 1237 3312 1330 617 253 653 Spaces Moved 4449 | 34 1091 599 1444 649 300 109 223 Core 10 | 10 . . . . . . . Treads 4439 | 24 1091 599 1444 649 300 109 223 Legs . | . . . . . . . . Wheels . | . . . . . . . . Hover . | . . . . . . . . Flight . | . . . . . . . . Fastest Speed 50 | 50 160 160 180 180 200 220 220 Average Speed 182 | 127 160 177 187 192 200 220 220 Slowest Speed 220 | 160 160 180 200 200 200 220 220 Overloaded Moves . | . . . . . . . . Propulsion Burnouts . | . . . . . . . . Robots Hopped . | . . . . . . . . Cave-ins Triggered . | . . . . . . . . Exploration Rate (%) 65 | 4 98 99 95 99 70 38 18 Regions Visited 7 Branch Regions 4 Pre-discovered Areas 3 | . . 2 . . 1 . . Known Exits Taken 4 | . 1 1 1 . . 1 . Unknown Exits Taken 3 | 1 . . . 1 1 . . Scrap Searched 4 | . . 1 . 3 . . . Spaces Dug 28 | . 16 1 9 . . . 2 Terrain Destroyed 103 | . 27 1 65 7 . . 3 Melee 2 | . . . . . . . 2 Projectile 6 | . 4 1 . . . . 1 AOE 95 | . 23 . 65 7 . . . Terrain Rammed . | . . . . . . . . Walls Destroyed . | . . . . . . . . Machines Disabled . | . . . . . . . . Actions | -11 -10 -10 -9 -9 -9 -8 -8 --------- Run | Scr Mat Min Mat Min Exi Min Mat Total 5392 | 53 1302 673 1898 702 314 115 335 Wait 323 | . 67 9 174 7 . . 66 Move 4442 | 33 1090 598 1443 648 299 108 223 Hop . | . . . . . . . . Pick Up 99 | 4 17 5 49 14 7 1 2 Fast Attach 21 | 5 1 2 10 1 . . 2 Attach 20 | . 7 1 7 1 1 1 2 Detach 11 | . 1 1 7 . 2 . . Swap 57 | . 10 3 33 3 1 1 6 Drop 84 | . 12 1 61 7 . . 3 Fire 298 | 11 95 53 114 20 . 4 1 Melee 34 | . . . . . 4 . 30 Ram . | . . . . . . . . Kick . | . . . . . . . . Crush 3 | . 2 . . 1 . . . Escape Stasis . | . . . . . . . . Rewire . | . . . . . . . . Trap . | . . . . . . . . Miscellaneous . | . . . . . . . . Route ------- -11/Scrapyard -10/Materials (discovered 4 exits: *Mat x3 / *Min) -10/Mines (discovered 2 exits: *Mat x2) -9/Materials (discovered 6 exits: *Mat x3 / *Min x2 / *Sto) -9/Mines (discovered 3 exits: *Mat x2 / *Exi) -9/Exiles -8/Mines -8/Materials (discovered 1 exit: Fac) History --------- Turn | Location | Event 19 | -11/Scrapyard | Discovered new exit (range 15) 86 | -11/Scrapyard | Entered Materials 317 | -10/Materials | Build established: Mutant 326 | -10/Materials | Repaired Lgt. Treads 753 | -10/Materials | Discovered new exit (range 13) 953 | -10/Materials | Discovered new exit (range 7) 1417 | -10/Materials | Discovered new exit (range 13) 1696 | -10/Materials | Discovered new exit (range 3) 1701 | -10/Materials | Identified exit to Materials 2222 | -10/Materials | Identified exit to Mines 2224 | -10/Materials | Entered Mines 2224 | -10/Mines | Accompanied by 1 ally 2225 | -10/Mines | Learned location of Storage (-9) 2316 | -10/Mines | Excavation squad dispatched 2316 | -10/Mines | A large section of the Mines collapsed 2383 | -10/Mines | Discovered exit to Materials (range 6) 2573 | -10/Mines | YI-UF0 nonchalantly dropped a Grenade Launcher on the ground 2622 | -10/Mines | Destroyed YI-UF0 2632 | -10/Mines | Found Prototype Launcher 2721 | -10/Mines | Core integrity fell below 50% 2753 | -10/Mines | Discovered exit to Materials (range 7) 3461 | -10/Mines | Entered Materials 3461 | -9/Materials | Evolved 2 slots: Utility x2 3850 | -9/Materials | Build established: Scavenger-Mutant 4076 | -9/Materials | Discovered new exit (range 6) 4177 | -9/Materials | Identified YI-UF0's Doublenader 4340 | -9/Materials | Discovered new exit (range 14) 4529 | -9/Materials | Central database locked down 4592 | -9/Materials | Discovered new exit (range 12) 4643 | -9/Materials | Identified exit to Mines 4663 | -9/Materials | Build established: Hauler-Mutant 4754 | -9/Materials | Identified exit to Materials 4917 | -9/Materials | Discovered new exit (range 16) 5054 | -9/Materials | Identified exit to Storage 5660 | -9/Materials | Repaired Hrd. Light Armor Plating 5692 | -9/Materials | Repaired Imp. Treads 5769 | -9/Materials | Repaired Hvy. Assault Rifle? 5802 | -9/Materials | Repaired Hvy. Assault Rifle? 5861 | -9/Materials | First assault squad dispatched 5950 | -9/Materials | Discovered exit to Materials (range 5) 6225 | -9/Materials | Discovered exit to Materials (range 9) 6773 | -9/Materials | Entered Mines 6824 | -9/Mines | Core integrity fell below 50% 7004 | -9/Mines | Assisted by bots powering up and referring to "LRC-V3" 7049 | -9/Mines | Received a Rocket Launcher from a helpful Derelict 7129 | -9/Mines | Discovered exit to Materials (range 10) 7172 | -9/Mines | Discovered exit to Materials (range 15) 7260 | -9/Mines | Found a hidden stash of uninstalled traps 7737 | -9/Mines | Learned location of 1 exit from Materials 8091 | -9/Mines | Deemed a non-threat by the Exiles lab entrance 8093 | -9/Mines | Discovered new exit (range 5) 8103 | -9/Mines | Entered Exiles 8166 | -9/Exiles | Met 8R-AWN 8202 | -9/Exiles | Met EX-HEX 8331 | -9/Exiles | Met EX-DEC 8387 | -9/Exiles | Learned location of Zion (-6) 8421 | -9/Exiles | Met EX-BIN 8451 | -9/Exiles | Aligned with FarCom system 8453 | -9/Exiles | Given EX-Vault access code 8501 | -9/Exiles | Opened EX-Vault 8517 | -9/Exiles | Found Field Lobotomy Kit 8560 | -9/Exiles | Warned to stay clear of 0b10 Research branches 8583 | -9/Exiles | Exiles lab attacked by MAIN.C 8704 | -9/Exiles | Discovered new exit (range 10) 8720 | -9/Exiles | Left Exiles lab with Field Lobotomy Kit 8720 | -9/Exiles | Entered Mines 8964 | -8/Mines | Discovered exit to Materials (range 5) 8973 | -8/Mines | Entered Materials 8973 | -8/Materials | Evolved 2 slots: Utility x2 8974 | -8/Materials | Identified exit to Factory 9626 | -8/Materials | Self-destructed Last Messages --------------- 09445_ Dropped Med. Armor Plating. 09446_ Acquired Unknown Device. 09446_ Identified Adv. Sensor Array. 09447_ Dropped Adv. Sensor Array. 09448_ K-01 Serf collects debris. 09450_ Acquired Med. Armor Plating. 09452_ K-01 Serf collects debris. 09454_ Acquired 20 matter. 09471_ W-25 Informer destroyed. 09471_ K-01 Serf collects debris. 09481_ Slug penetrates Processing Tank. 09481_ Processing Tank disabled. 09496_ Slug penetrates Wall. 09496_ U-05 Engineer builds a Door. 09502_ Penetrated by Slug. 09507_ Slug penetrates Wall. 09511_ Penetrated by Slug. 09514_ H-55 Commando destroyed. 09514_ K-01 Serf collects debris. 09586_ U-05 Engineer builds a Wall. Map ----- +----------------------------------------------------+ | | | | | | | | | | | ????????????????????????????????????????? | | ????????????????????????????????????????? | | ????????????????????????????????????????? | | ????????????????????????????????????????? | | ????????????????????????????????????????? | | ????????????????????????????????????????? | | ????????????????????????????????????????? | | ????????????????????????????????????????? | | ????????????????????????????????????????? | | ???????????????????????g????????????????? | | ????????????????????????????????????????? | | ????????????????????????????????????????? | | ?????????##????????g??bg????????????????? | | ?????????# ????????????????????????????? | | ?????????#! ???????????????????Y????????? | | ?????????? ???????????????????????????? | | ??????????? ????????? ????????????????? | | ????????????! ??????=] ????????????????? | | ?????????????#"#????/= ?????????????????? | | ????????##########? ??????????????????? | | ????????# u@#? ?#??????????????? | | ????????# # #??????????????? | | ????????# # / #??????????????? | | ????????# # ##?????????????? | | ????????# + ? ??????????? | | ????????# # ???????????? | | ????????# ## ??????????? | | ????????# ## ???????????? | | ????????# ## ???????????? | | ??????############# """ """ ???#??????? | | ??????# # """ ^""" #??????? | | ??????# # """ """ #??????? | | ??????# # #??????? | | ??????# + ! #??????? | | ??????# # #??????? | | ??????# # ########?????????? | | ??????# # #????????????????? | | ??????############# #????????????????? | | ?????????????????## ########?????????? | | ?????????????????# ! #?????????? | | ????#########????# ! #?????????? | | ???? #????# #?????????? | | ????""" #????# #?????????? | | ????""" #????# #?????????? | | ???#""" #????# #?????????? | +----------------------------------------------------+ Best States ------------- Heat Dissipation 47 Energy Generation 14 Energy Capacity 280 Matter Stores 500 Matter Capacity 500 Sight Range 16 Terrain Scan Density 10 Armor Coverage 375 Weapon Shielding 33 Evasion (%) 50 Melee Accuracy 5 Recoil Reduction 2 Offensive Hacking 10 Item Schematics ----------------- Hcp. Storage Unit | -9/Materials | Hacked Plasma Cutter | -9/Materials | Scanalyzed Adv. Heat Sink | -9/Materials | Scanalyzed Hcp. Matter Pod | -9/Materials | Scanalyzed Imp. Assault Rifle | -9/Materials | Scanalyzed Hvy. Assault Rifle | -9/Materials | Scanalyzed Lgt. Armor Plating | -9/Materials | Scanalyzed Imp. Flight Unit | -9/Materials | Scanalyzed Robot Schematics ------------------ None Fabricated ------------ Nothing Alien Tech Used ----------------- None Achievements -------------- None Challenges ------------ None Game ------ Seed BlastFlyingWell Manual? 0 Play Time 00:55:59 Cumulative 194.2 hours Start 2021.01.11 @ 10:34:23 End 2021.01.11 @ 15:25:51 Sessions 3 Manual Loads 0 Difficulty Rogue Special Mode None Game No. 181 Rogue 181 Adventurer 0 Explorer 0 Win Type - Total 0 Types 0/0/0/0/0/0/0/0/0 Lore% 59 Gallery% 68 Achievement% 54 Wizard Run 0 Options --------- ASCII 0 Keyboard 1 Movement Numpad Keybinds 0 Fullscreen 1 Font 12/Terminus Map View 83x54 Tactical HUD 1 Map Filters NONE Filters NONE Steam 1 RUN: b1ad5b6b-1203-45a3-afb6-3d8d3e0fa69d